[Event "Polish Youth Ekstraliga 2022"]
[Site "Lublin"]
[Date "2022.07.01"]
[Round "7.22"]
[White "Terkiewicz, Bruno"]
[Black "Kania, Franciszek"]
[Result "1/2-1/2"]
[ECO "B36"]
[WhiteElo "1320"]
[BlackElo "1523"]
[Annotator "NA RC"]
[PlyCount "230"]
[EventDate "2022.06.24"]
[EventType "team-tourn"]
[EventCountry "POL"]
[SourceTitle "playchess.com"]
[Source "ChessBase"]
[SourceQuality "1"]
[TimeControl "40/5400+30:1800+30"]

1. e4 {[%emt 0:02:03]} c5 {[%emt 0:00:09]} 2. Nf3 {[%emt 0:00:03]} Nc6 {[%emt 0:00:09]} 3. d4 {[%emt 0:00:02]} cxd4 {[%emt 0:00:33]} 4. Nxd4 {[%emt 0:00:02]} g6 {[%emt 0:00:33]} 5. c4 {[%emt 0:00:04]} Nf6 {[%emt 0:00:16]} 6. Nc3 {[%emt 0:00:03]} d6 {[%emt 0:00:09]} 7. Be2 {[%emt 0:00:03]} Nxd4 {[%emt 0:00:06]} 8. Qxd4 {[%emt 0:00:02]} Bg7 {[%emt 0:00:25]} 9. Bg5 {[%emt 0:00:04]} O-O {[%emt 0:00:26]} 10. Qd2 {[%emt 0:00:03]} a5 {[%emt 0:00:56]} 11. Rc1 {[%emt 0:00:21]} a4 {[%emt 0:00:20]} 12. f3 {[%emt 0:00:04]} Qa5 {[%emt 0:01:13]} 13. O-O {[%emt 0:00:32]} Be6 {[%emt 0:02:47]} 14. Nd5 {[%emt 0:00:06]} Qxd2 {[%emt 0:02:27]} 15. Nxe7+ {[%emt 0:00:06]} Kh8 {[%emt 0:00:16]} 16. Bxd2 {[%emt 0:00:03]} Rfe8 {[%emt 0:00:17]} 17. Nd5 {[%emt 0:00:05]} Nxd5 {[%emt 0:01:35]} 18. cxd5 {[%emt 0:01:32]} Bxd5 {[%emt 0:01:10]} 19. Bb5 {[%emt 0:00:04]} Bc6 {[%emt 0:00:45]} 20. Bxc6 {[%emt 0:00:54]} bxc6 {[%emt 0:00:05]} 21. Rxc6 {[%emt 0:00:05]} Rab8 22. b4 {[%emt 0:42:11]} axb3 {[%emt 0:16:56]} 23. axb3 {[%emt 0:00:05]} Rxb3 24. Rxd6 {[%emt 0:02:08]} Ra8 {[%emt 0:07:49]} 25. Rd1 {[%emt 0:03:16]} h5 {[%emt 0:02:44]} 26. Rd7 {[%emt 0:03:13]} Kg8 {[%emt 0:03:06]} 27. Kf1 {[%emt 0:02:24]} Ra2 {[%emt 0:02:18]} 28. Bf4 {[%emt 0:06:52]} Rc2 {[%emt 0:18:07]} 29. Rd8+ {[%emt 0:07:10]} Kh7 {[%emt 0:00:21]} 30. R8d3 {[%emt 0:00:05]} Rb4 {[%emt 0:03:28]} 31. R3d2 {[%emt 0:01:02]} Rc6 {[%emt 0:00:56]} 32. Rd7 {[%emt 0:01:35]} Kg8 {[%emt 0:05:05]} 33. Rc7 {[%emt 0:03:19]} Rxc7 {[%emt 0:01:55]} 34. Bxc7 {[%emt 0:00:07]} Rb2 {[%emt 0:00:32]} 35. Bf4 {[%emt 0:01:28]} Bc3 {[%emt 0:00:31]} 36. h3 {[%emt 0:02:50]} Ra2 {[%emt 0:00:56]} 37. Kg1 {[%emt 0:03:24]} Kg7 {[%emt 0:06:41]} 38. Rd5 {[%emt 0:02:08]} Kf8 {[%emt 0:04:32]} 39. Be5 {[%emt 0:00:57]} Bxe5 {[%emt 0:02:02]} 40. Rxe5 {[%emt 0:00:00]} f6 {[%emt 0:00:00]} 41. Rd5 {[%emt 0:01:17]} Ke7 {[%emt 0:04:47]} 42. Rd4 {[%emt 0:01:47]} g5 {[%emt 0:01:52]} 43. Rd5 {[%emt 0:01:14]} Ra1+ {[%emt 0:10:39]} 44. Kh2 {[%emt 0:01:09]} h4 {[%emt 0:03:18]} 45. Rf5 {[%emt 0:02:53]} Re1 {[%emt 0:11:45]} 46. Ra5 {[%emt 0:22:13]} Ke6 {[%emt 0:01:50]} 47. Ra6+ {[%emt 0:00:16]} Ke5 {[%emt 0:00:36]} 48. Ra8 {[%emt 0:00:13]} Ke6 {[%emt 0:01:13]} 49. Rh8 {[%emt 0:00:18]} Ke7 {[%emt 0:01:05]} 50. Rb8 {[%emt 0:00:21]} Rf1 {[%emt 0:01:23]} 51. Rb7+ {[%emt 0:00:33]} Ke6 {[%emt 0:00:11]} 52. Rh7 {[%emt 0:00:06]} Kd6 {[%emt 0:00:43]} 53. Rh8 {[%emt 0:00:42]} Ke7 {[%emt 0:00:45]} 54. Rg8 {[%emt 0:00:35]} Kf7 {[%emt 0:00:15]} 55. Rc8 {[%emt 0:00:06]} Ke6 {[%emt 0:00:46]} 56. Re8+ {[%emt 0:00:14]} Kf7 {[%emt 0:00:10]} 57. Ra8 {[%emt 0:00:10]} Ke6 {[%emt 0:00:28]} 58. Rb8 {[%emt 0:00:07]} Re1 {[%emt 0:01:13]} 59. Rb6+ {[%emt 0:00:36]} Kf7 {[%emt 0:00:11]} 60. Rb7+ {[%emt 0:00:13]} Ke6 {[%emt 0:00:21]} 61. Rb6+ {[%emt 0:00:21]} Kf7 {[%emt 0:00:26]} 62. Rb8 {[%emt 0:00:11]} Ke6 {[%emt 0:00:38]} 63. Rb5 {[%emt 0:00:08]} Rf1 {[%emt 0:00:22]} 64. Rf5 {[%emt 0:00:11]} Re1 {[%emt 0:00:48]} 65. Ra5 {[%emt 0:00:10]} Rf1 {[%emt 0:00:31]} 66. Ra8 {[%emt 0:00:08]} Kf7 {[%emt 0:00:37]} 67. Rh8 {[%emt 0:01:19]} Re1 {[%emt 0:00:37]} 68. Rh7+ {[%emt 0:00:19]} Ke6 {[%emt 0:00:46]} 69. Rh8 {[%emt 0:00:09]} Kf7 {[%emt 0:00:22]} 70. Rd8 {[%emt 0:00:21]} Ke7 {[%emt 0:00:26]} 71. Rd5 {[%emt 0:00:08]} Ke6 {[%emt 0:00:23]} 72. Rf5 {[%emt 0:00:13]} Rf1 {[%emt 0:00:31]} 73. Rb5 {[%emt 0:00:00]} Re1 {[%emt 0:01:42]} 74. Rb8 {[%emt 0:00:00]} Kf7 {[%emt 0:00:29]} 75. Ra8 {[%emt 0:00:00]} Ke6 {[%emt 0:00:36]} 76. Re8+ {[%emt 0:00:00]} Kf7 {[%emt 0:00:09]} 77. Rc8 {[%emt 0:00:00]} Ke6 {[%emt 0:00:21]} 78. Rc5 {[%emt 0:00:00]} Rf1 {[%emt 0:00:21]} 79. Ra5 {[%emt 0:00:00]} Re1 {[%emt 0:00:17]} 80. Rf5 {[%emt 0:00:00]} Rf1 {[%emt 0:00:19]} 81. Rb5 {[%emt 0:00:00]} Re1 {[%emt 0:00:18]} 82. Rb8 {[%emt 0:00:00]} Rf1 {[%emt 0:00:47]} 83. Re8+ {[%emt 0:00:00]} Kf7 {[%emt 0:00:08]} 84. Ra8 {[%emt 0:00:00]} Re1 {[%emt 0:00:15]} 85. Ra7+ {[%emt 0:00:00]} Ke6 {[%emt 0:00:12]} 86. Ra6+ {[%emt 0:00:00]} Kf7 {[%emt 0:00:15]} 87. Ra7+ {[%emt 0:00:00]} Ke6 {[%emt 0:00:07]} 88. Ra8 {[%emt 0:00:00]} Rf1 {[%emt 0:00:25]} 89. Re8+ {[%emt 0:00:04]} Kf7 {[%emt 0:00:10]} 90. Ra8 {[%emt 0:00:16]} Ke6 {[%emt 0:00:11]} 91. Ra5 {[%emt 0:00:10]} Re1 {[%emt 0:00:18]} 92. Rc5 {[%emt 0:00:20]} Rf1 {[%emt 0:00:21]} 93. Rb5 {[%emt 0:00:06]} Re1 {[%emt 0:00:13]} 94. Rb8 {[%emt 0:00:22]} Rf1 {[%emt 0:00:21]} 95. Re8+ {[%emt 0:00:19]} Kf7 {[%emt 0:00:06]} 96. Rh8 {[%emt 0:00:08]} Ke6 {[%emt 0:00:29]} 97. Ra8 {[%emt 0:00:06]} Kf7 {[%emt 0:01:53]} 98. Ra7+ {[%emt 0:01:01]} Ke6 {[%emt 0:00:09]} 99. Rh7 {[%emt 0:00:07]} Kd6 {[%emt 0:00:33]} 100. Rh8 {[%emt 0:00:06]} Ke6 {[%emt 0:00:10]} 101. Rd8 {[%emt 0:00:09]} Ke7 {[%emt 0:00:14]} 102. Rb8 {[%emt 0:00:09]} Ke6 {[%emt 0:00:04]} 103. Rb7 {[%emt 0:00:11]} Kd6 {[%emt 0:01:20]} 104. Ra7 {[%emt 0:00:06]} Ke6 {[%emt 0:00:06]} 105. Ra6+ {[%emt 0:00:04]} Ke5 {[%emt 0:00:14]} 106. Ra8 {[%emt 0:00:21]} Ke6 {[%emt 0:00:06]} 107. Rg8 {[%emt 0:00:08]} Kf7 {[%emt 0:00:15]} 108. Rc8 {[%emt 0:00:07]} Ke6 {[%emt 0:00:21]} 109. Rb8 {[%emt 0:00:06]} Ke7 {[%emt 0:00:19]} 110. Rg8 {[%emt 0:00:05]} Kf7 {[%emt 0:00:04]} 111. Rb8 {[%emt 0:00:06]} Ke6 {[%emt 0:00:11]} 112. Ra8 {[%emt 0:00:06]} Ke7 {[%emt 0:00:18]} 113. Ra6 {[%emt 0:00:14]} Kf7 {[%emt 0:00:29]} 114. Rc6 {[%emt 0:00:07]} Re1 {[%emt 0:00:33]} 115. Rc7+ {[%emt 0:00:05]} Ke6 {[%emt 0:00:17]} 1/2-1/2

[Event "Polish Youth Ekstraliga 2022"]
[Site "Lublin"]
[Date "2022.07.01"]
[Round "7.23"]
[White "Dylag, Emilia"]
[Black "Bukala, Weronika"]
[Result "1-0"]
[ECO "A62"]
[WhiteElo "2022"]
[BlackElo "1827"]
[Annotator "RC"]
[PlyCount "113"]
[EventDate "2022.06.24"]
[EventType "team-tourn"]
[EventCountry "POL"]
[SourceTitle "playchess.com"]
[Source "ChessBase"]
[SourceQuality "1"]
[TimeControl "40/5400+30:1800+30"]

1. d4 {[%emt 0:00:03]} Nf6 {[%emt 0:00:41]} 2. c4 {[%emt 0:00:08]} c5 {[%emt 0:00:07]} 3. d5 {[%emt 0:00:09]} e6 {[%emt 0:00:49]} 4. Nc3 {[%emt 0:01:41]} exd5 {[%emt 0:00:43]} 5. cxd5 {[%emt 0:00:20]} d6 {[%emt 0:00:39]} 6. g3 {[%emt 0:00:41]} g6 {[%emt 0:00:11]} 7. Bg2 {[%emt 0:00:06]} Bg7 {[%emt 0:00:07]} 8. Nf3 {[%emt 0:00:25]} O-O {[%emt 0:00:09]} 9. O-O {[%emt 0:00:07]} Re8 {[%emt 0:00:10]} 10. Bf4 {[%emt 0:00:18]} Ne4 {[%emt 0:00:15]} 11. Nxe4 {[%emt 0:00:18]} Rxe4 {[%emt 0:00:03]} 12. Nd2 {[%emt 0:00:13]} Rxf4 {[%emt 0:00:12]} 13. gxf4 {[%emt 0:00:05]} Bxb2 {[%emt 0:00:06]} 14. Rb1 {[%emt 0:00:06]} Bg7 {[%emt 0:00:07]} 15. Re1 {[%emt 0:06:10]} Nd7 {[%emt 0:02:29]} 16. a4 {[%emt 0:13:12]} b6 {[%emt 0:07:28]} 17. e3 {[%emt 0:04:55]} Ba6 {[%emt 0:08:32]} 18. Bf1 {[%emt 0:13:27]} Bb7 {[%emt 0:01:07]} 19. Nc4 {[%emt 0:15:28]} Nf6 {[%emt 0:02:52]} 20. Bg2 {[%emt 0:01:02]} Ba6 {[%emt 0:05:38]} 21. Qc2 {[%emt 0:02:32]} Rb8 {[%emt 0:05:55]} 22. Bf3 {[%emt 0:04:26]} Bc8 {[%emt 0:01:19]} 23. Rbd1 {[%emt 0:07:24]} a6 {[%emt 0:08:32]} 24. e4 {[%emt 0:07:33]} Ne8 {[%emt 0:12:33]} 25. e5 {[%emt 0:05:42]} b5 {[%emt 0:00:42]} 26. axb5 {[%emt 0:01:09]} axb5 {[%emt 0:00:03]} 27. Nxd6 {[%emt 0:04:47]} Nxd6 {[%emt 0:00:40]} 28. exd6 {[%emt 0:03:12]} Qxd6 {[%emt 0:01:20]} 29. Re8+ {[%emt 0:00:26]} Bf8 {[%emt 0:00:02]} 30. Qe2 {[%emt 0:02:58]} Bf5 {[%emt 0:14:59]} 31. Rxb8 {[%emt 0:00:23]} Qxb8 {[%emt 0:00:01]} 32. Bg4 {[%emt 0:02:02]} Bxg4 {[%emt 0:03:07]} 33. Qxg4 {[%emt 0:00:06]} Bd6 {[%emt 0:00:20]} 34. Qd7 {[%emt 0:01:03]} b4 {[%emt 0:01:56]} 35. Ra1 {[%emt 0:02:29]} Qc7 {[%emt 0:08:51]} 36. Qxc7 {[%emt 0:00:59]} Bxc7 {[%emt 0:00:01]} 37. Rc1 {[%emt 0:00:16]} Bd6 {[%emt 0:00:12]} 38. Kf1 {[%emt 0:01:26]} Kg7 {[%emt 0:02:57]} 39. Ke2 {[%emt 0:00:28]} Kf6 {[%emt 0:00:12]} 40. Kd3 {[%emt 0:00:00]} Kf5 {[%emt 0:00:00]} 41. Kc4 {[%emt 0:11:08]} Kxf4 {[%emt 0:26:07]} 42. Ra1 {[%emt 0:01:59]} g5 {[%emt 0:09:13]} 43. Ra7 {[%emt 0:03:06]} Ke4 {[%emt 0:02:12]} 44. Rxf7 {[%emt 0:02:13]} h5 {[%emt 0:00:18]} 45. h3 {[%emt 0:04:49]} h4 {[%emt 0:02:01]} 46. Rf6 {[%emt 0:08:11]} Be5 {[%emt 0:01:44]} 47. f3+ {[%emt 0:00:47]} Ke3 {[%emt 0:00:08]} 48. Re6 {[%emt 0:00:05]} Kf4 {[%emt 0:00:13]} 49. d6 {[%emt 0:00:29]} Bxd6 {[%emt 0:01:34]} 50. Rxd6 {[%emt 0:00:04]} Kg3 {[%emt 0:00:07]} 51. Rg6 {[%emt 0:00:33]} Kxh3 {[%emt 0:00:52]} 52. Rxg5 {[%emt 0:00:05]} Kh2 {[%emt 0:00:11]} 53. f4 {[%emt 0:00:06]} h3 {[%emt 0:00:07]} 54. f5 {[%emt 0:00:05]} Kh1 {[%emt 0:00:05]} 55. f6 {[%emt 0:00:05]} h2 {[%emt 0:00:10]} 56. f7 {[%emt 0:00:09]} b3 {[%emt 0:00:06]} 57. f8=Q {[%emt 0:00:05]} 1-0

[Event "Polish Youth Ekstraliga 2022"]
[Site "Lublin"]
[Date "2022.07.01"]
[Round "7.25"]
[White "Niedbala, Bartlomiej"]
[Black "Kutowski, Marcel"]
[Result "1-0"]
[ECO "A06"]
[WhiteElo "2384"]
[BlackElo "1954"]
[Annotator "TA"]
[PlyCount "59"]
[EventDate "2022.06.24"]
[EventType "team-tourn"]
[EventCountry "POL"]
[SourceTitle "playchess.com"]
[Source "ChessBase"]
[SourceQuality "1"]
[TimeControl "40/5400+30:1800+30"]

{[%evp 21,59,4,16,6,14,18,30,16,30,16,20,0,0,0,3,0,10,0,0,0,42,8,13,-9,41,14,15,20,157,160,109,106,336,351,813,812,29990,29991,29991,29992]} 1. Nf3 {[%emt 0:02:20]} d5 {[%emt 0:00:32]} 2. e3 {[%emt 0:00:20]} Nf6 {[%emt 0:02:00]} 3. c4 {[%emt 0:03:47]} e6 {[%emt 0:02:55]} 4. Nc3 {[%emt 0:01:09]} Be7 {[%emt 0:04:18]} 5. b3 {[%emt 0:00:26]} O-O {[%emt 0:00:27]} 6. Bb2 {[%emt 0:00:02]} b6 {[%emt 0:01:27]} 7. g3 {[%emt 0:08:00]} Bb7 {[%emt 0:00:37]} 8. Bg2 {[%emt 0:00:03]} dxc4 {[%emt 0:04:16]} 9. bxc4 {[%emt 0:00:27]} c5 {[%emt 0:00:56]} 10. O-O {[%emt 0:04:04]} Nc6 {[%emt 0:03:17]} 11. Qe2 {[%emt 0:02:14]} Rc8 {[%emt 0:03:43]} 12. d3 {[%emt 0:00:45] A14: English Opening: 1...e6 with b3 by White.} Qc7 {[%emt 0:03:09]} 13. Ne1 {[%emt 0:04:19]} Rfd8 {[%emt 0:08:00]} 14. f4 {[%emt 0:00:39] White has an edge.} a6 {[%emt 0:15:49]} 15. g4 {[%emt 0:07:07]} Nb4 {[%emt 0:10:32] [#]} 16. g5 $146 {[%emt 0:02:52]} ({Predecessor:} 16. Bxb7 Qxb7 17. a3 Nc6 18. a4 Nb4 19. h4 Ne8 20. h5 Bf8 21. Rf3 Nxd3 22. Nxd3 Rxd3 {0-1 (33) Edouard,R (2640)-Diaz Camallonga,C (2474) Chess.com INT 2020}) 16... Bxg2 {[%emt 0:01:36]} 17. Kxg2 {[%emt 0:00:41]} Ne8 {[%emt 0:00:11][%cal Ob6b5]} 18. a3 {[%emt 0:01:15]} Qb7+ {[%emt 0:01:59]} 19. Rf3 {[%emt 0:02:40]} Nc6 {[%emt 0:01:19]} 20. Kg1 {[%emt 0:03:24]} f6 {[%emt 0:02:02]} 21. gxf6 {[%emt 0:05:44]} Bxf6 {[%emt 0:03:14]} 22. Ne4 {[%emt 0:02:34]} Qe7 {[%emt 0:02:04]} (22... Bxb2 $11 23. Qxb2 Nd6) 23. Rb1 $36 {[%emt 0:06:01][%mdl 2048] White is more active.} Rb8 {[%emt 0:02:17]} 24. Rh3 {[%emt 0:03:00] And now Qh5 would win.} g6 {[%emt 0:04:55] Against Qh5} (24... b5 $11 {remains equal.}) 25. Nxf6+ $16 {[%emt 0:03:04]} Nxf6 {[%emt 0:00:06]} 26. Qg2 {[%emt 0:02:19]} Rdc8 {[%emt 0:05:45] [#] This costs Black the game.} (26... Rbc8 $16) 27. Nf3 $18 {[%emt 0:05:27]} Nd8 $2 {[%emt 0:00:51]} (27... Rc7 28. Ng5 e5) 28. Qg5 {[%emt 0:00:41]} Kf7 {[%emt 0:03:26]} 29. Bxf6 {[%emt 0:00:27]} Qxf6 {[%emt 0:00:33]} 30. Rxh7+ {[%emt 0:00:07] Weighted Error Value: White=0.08 (flawless) /Black=0.81} 1-0

[Event "Polish Youth Ekstraliga 2022"]
[Site "Lublin"]
[Date "2022.07.01"]
[Round "7.26"]
[White "Wilk, Igor"]
[Black "Redzisz, Michal"]
[Result "0-1"]
[ECO "C42"]
[WhiteElo "1824"]
[BlackElo "2236"]
[Annotator "TA"]
[PlyCount "84"]
[EventDate "2022.06.24"]
[EventType "team-tourn"]
[EventCountry "POL"]
[SourceTitle "playchess.com"]
[Source "ChessBase"]
[SourceQuality "1"]
[TimeControl "40/5400+30:1800+30"]

{[%evp 9,84,37,22,16,10,0,8,4,0,-5,-15,-9,21,5,8,-58,-60,-64,-66,-206,-12,0,43,21,67,70,77,72,79,74,72,45,82,70,59,69,56,64,63,0,0,-66,-83,-47,-65,-188,-181,-154,-168,-341,-318,-314,-335,-348,-321,-302,-344,-386,-384,-374,-354,-564,-398,-944,-916,-1812,-1743,-29969,-29972,-29968,-29969,-6487,-6487,-5561,-5493,-29978,-29965]} 1. e4 {[%emt 0:00:04]} e5 {[%emt 0:01:35]} 2. Nf3 {[%emt 0:00:09]} Nf6 {[%emt 0:00:04]} 3. Nxe5 {[%emt 0:00:13]} d6 {[%emt 0:00:04]} 4. Nf3 {[%emt 0:00:09]} Nxe4 {[%emt 0:00:04]} 5. Bd3 {[%emt 0:00:23]} d5 {[%emt 0:00:05]} 6. O-O {[%emt 0:00:25] C42: Petroff Defence: 3 Nxe5 and unusual White 3rd moves.} Be7 {[%emt 0:00:02]} 7. c3 {[%emt 0:01:18]} O-O {[%emt 0:00:21]} 8. Bc2 {[%emt 0:01:25] The position is equal.} Bg4 {[%emt 0:02:12]} 9. d4 {[%emt 0:05:03]} Nd7 {[%emt 0:02:56]} 10. Re1 {[%emt 0:02:46]} Ndf6 {[%emt 0:12:16] [#]} 11. h3 $146 {[%emt 0:03:03]} ({Predecessor:} 11. Qd3 Nd6 12. Bg5 Bf5 13. Qe2 Re8 14. Bxf5 Nxf5 15. Nbd2 h6 16. Bxf6 Bxf6 17. Qd3 {0-1 (49) Lowitz,T (2056)-Reimold,J (1879) Cologne 2004}) 11... Bh5 {[%emt 0:01:00]} 12. Bf4 {[%emt 0:00:21]} (12. g4 $11 Bg6 13. Ne5) 12... Bd6 $15 {[%emt 0:01:51]} 13. Be5 {[%emt 0:09:33]} Re8 $1 {[%emt 0:02:09]} 14. Qc1 {[%emt 0:01:02]} ({White should try} 14. Nbd2 $15) 14... Nd7 $2 {[%emt 0:26:05]} ({Black should play} 14... Bxf3 $19 15. gxf3 Nxf2 16. Kxf2 Nh5) 15. Bxd6 $11 {[%emt 0:10:17]} cxd6 {[%emt 0:01:35]} 16. Nbd2 {[%emt 0:04:38][%cal Rd2e4,Bb1d2,Bd2f1,Bf1e3][%mdl 32]} Ndf6 {[%emt 0:07:53]} (16... f5 $11) 17. Nf1 {[%emt 0:03:21]} h6 {[%emt 0:05:33]} 18. N3h2 {[%emt 0:11:59]} (18. Nh4 {feels hotter.} Nh7 19. Qf4 g5 20. Qf5) 18... Bg6 {[%emt 0:08:29]} 19. f3 {[%emt 0:03:52]} Ng5 {[%emt 0:00:04]} 20. Ne3 {[%emt 0:00:21]} Qd7 {[%emt 0:09:27]} 21. Nhg4 {[%emt 0:02:43]} Ngh7 {[%emt 0:00:49]} 22. Bxg6 {[%emt 0:09:26]} fxg6 {[%emt 0:00:06]} 23. Qc2 {[%emt 0:00:06]} Qf7 {[%emt 0:00:09]} 24. Re2 {[%emt 0:00:43]} (24. Qb3 $14) 24... Nh5 $1 {[%emt 0:01:09][%cal Bf6h5,Bh5f4,Bf4h3][%mdl 32]} 25. Qb3 {[%emt 0:03:30]} (25. Nf1 $11) 25... Nf4 {[%emt 0:01:21]} 26. Ree1 {[%emt 0:00:24]} Re7 {[%emt 0:04:43]} 27. g3 {[%emt 0:02:49] Black continues to play with concentration.} (27. Nf1 $15) 27... Nxh3+ $19 {[%emt 0:01:29]} 28. Kg2 {[%emt 0:00:05] [#]} Rae8 $1 {[%emt 0:00:15][%cal Oh6h5] aiming for ...h5!} 29. Rf1 $2 {[%emt 0:02:33]} (29. f4 {was the only defense.}) 29... Rxe3 {[%emt 0:04:14]} 30. Nxe3 {[%emt 0:00:20]} Rxe3 {[%emt 0:00:04]} 31. Rae1 {[%emt 0:03:18] Prevents Re2+.} Rxe1 {[%emt 0:00:27]} 32. Rxe1 {[%emt 0:00:05]} N3g5 {[%emt 0:00:01]} 33. Re3 {[%emt 0:00:16]} Nf6 {[%emt 0:00:42] Threatens to win with ...Qd7.} 34. Qa4 {[%emt 0:01:44]} a6 {[%emt 0:00:24]} 35. b3 {[%emt 0:01:27]} (35. Kh1 $142) 35... Kh7 {[%emt 0:02:30] [#] ...Nh5 is the strong threat.} 36. c4 $2 {[%emt 0:00:49]} (36. b4) 36... Nh5 {[%emt 0:02:47] White must now prevent ...Qf5.} 37. cxd5 {[%emt 0:02:05]} Qf5 {[%emt 0:00:26] ( -> ...Qc2+)} 38. Qc4 {[%emt 0:00:24] Against Qc2+} Qh3+ {[%emt 0:00:13]} 39. Kf2 {[%emt 0:00:07]} Qxg3+ {[%emt 0:00:55]} 40. Ke2 {[%emt 0:00:00]} Nf4+ {[%emt 0:00:00]} 41. Kd1 {[%emt 0:00:27]} Qf2 {[%emt 0:01:51]} 42. Qc3 {[%emt 0:00:22]} Nxd5 {[%emt 0:00:05] Weighted Error Value: White=0.93/Black=0.16 (very precise)} 0-1

[Event "Polish Youth Ekstraliga 2022"]
[Site "Lublin"]
[Date "2022.07.01"]
[Round "7.27"]
[White "Warchol, Kamil"]
[Black "Bartoszczuk, Adam"]
[Result "1-0"]
[ECO "A05"]
[WhiteElo "2079"]
[BlackElo "1662"]
[Annotator "RC"]
[PlyCount "89"]
[EventDate "2022.06.24"]
[EventType "team-tourn"]
[EventCountry "POL"]
[SourceTitle "playchess.com"]
[Source "ChessBase"]
[SourceQuality "1"]
[TimeControl "40/5400+30:1800+30"]

1. Nf3 {[%emt 0:00:07]} Nf6 {[%emt 0:00:07]} 2. b3 {[%emt 0:00:03]} g6 {[%emt 0:00:16]} 3. Bb2 {[%emt 0:00:52]} Bg7 {[%emt 0:00:09]} 4. c4 {[%emt 0:01:21]} d6 {[%emt 0:01:01]} 5. g3 {[%emt 0:01:11]} e5 {[%emt 0:01:14]} 6. d3 {[%emt 0:02:37]} Nc6 {[%emt 0:02:19]} 7. Bg2 {[%emt 0:02:34]} O-O {[%emt 0:03:59]} 8. O-O {[%emt 0:01:53]} Nd7 {[%emt 0:06:23]} 9. Nc3 {[%emt 0:17:37]} f5 {[%emt 0:02:37]} 10. Nd2 {[%emt 0:04:20]} Nf6 {[%emt 0:06:16]} 11. Rc1 {[%emt 0:10:47]} Ne7 {[%emt 0:12:31]} 12. b4 {[%emt 0:10:19]} c6 {[%emt 0:05:00]} 13. Na4 {[%emt 0:07:35]} Qc7 {[%emt 0:08:39]} 14. Nf3 {[%emt 0:06:06]} Nd7 {[%emt 0:12:46]} 15. Qb3 {[%emt 0:02:31]} Kh8 {[%emt 0:07:54]} 16. Rfd1 {[%emt 0:07:19]} h6 {[%emt 0:03:49]} 17. h4 {[%emt 0:01:05]} Nb6 {[%emt 0:11:40]} 18. Nc3 {[%emt 0:01:11]} Be6 {[%emt 0:00:26]} 19. Qc2 {[%emt 0:01:43]} Nd7 {[%emt 0:01:05]} 20. Qd2 {[%emt 0:03:15]} Nf6 {[%emt 0:00:53]} 21. e3 {[%emt 0:01:28]} Rad8 {[%emt 0:00:37]} 22. Ne2 {[%emt 0:01:09]} Nh5 {[%emt 0:07:46]} 23. Re1 {[%emt 0:02:18]} Qd7 {[%emt 0:01:23]} 24. Kh2 {[%emt 0:08:08]} Kh7 {[%emt 0:00:32]} 25. e4 {[%emt 0:01:30]} f4 {[%emt 0:01:53]} 26. d4 {[%emt 0:00:20]} Bg4 {[%emt 0:00:22]} 27. Rf1 {[%emt 0:00:19]} Nf6 {[%emt 0:00:37]} 28. Qd3 {[%emt 0:01:11]} Nxe4 {[%emt 0:00:38]} 29. gxf4 {[%emt 0:02:06]} Bf5 {[%emt 0:01:04]} 30. Qe3 {[%emt 0:00:53]} exf4 {[%emt 0:00:27]} 31. Nxf4 {[%emt 0:00:37]} d5 {[%emt 0:00:48]} 32. Ne5 {[%emt 0:00:57]} Bxe5 {[%emt 0:00:02]} 33. dxe5 {[%emt 0:00:04]} Rde8 {[%emt 0:01:04]} 34. Qd4 {[%emt 0:00:59]} Be6 {[%emt 0:00:30]} 35. cxd5 {[%emt 0:00:41]} cxd5 {[%emt 0:00:38]} 36. Qe3 {[%emt 0:00:50]} Nf5 {[%emt 0:00:14]} 37. Qd3 {[%emt 0:00:27]} Qe7 {[%emt 0:00:25]} 38. Nxe6 {[%emt 0:00:18]} Qxh4+ {[%emt 0:00:33]} 39. Kg1 Rxe6 {[%emt 0:00:09]} 40. Qxd5 {[%emt 0:00:00]} Ng5 {[%emt 0:00:00]} 41. Qd3 {[%emt 0:08:21]} Rf7 {[%emt 0:08:08]} 42. Rc4 {[%emt 0:05:19]} Qh5 {[%emt 0:00:25]} 43. f4 Ng3 {[%emt 0:13:53]} 44. Qxg3 {[%emt 0:02:06]} Qe2 {[%emt 0:00:12]} 45. fxg5 {[%emt 0:00:32]} 1-0

[Event "Polish Youth Ekstraliga 2022"]
[Site "Lublin"]
[Date "2022.07.01"]
[Round "7.28"]
[White "Kaszuba, Michal"]
[Black "Krol, Jan"]
[Result "0-1"]
[ECO "B40"]
[WhiteElo "1307"]
[BlackElo "1668"]
[Annotator "NA RC"]
[PlyCount "82"]
[EventDate "2022.06.24"]
[EventType "team-tourn"]
[EventCountry "POL"]
[SourceTitle "playchess.com"]
[Source "ChessBase"]
[SourceQuality "1"]
[TimeControl "40/5400+30:1800+30"]

1. e4 {[%emt 0:00:02]} c5 {[%emt 0:00:08]} 2. Nf3 {[%emt 0:00:20]} e6 {[%emt 0:00:04]} 3. c4 {[%emt 0:00:16]} a6 {[%emt 0:01:03]} 4. d4 {[%emt 0:01:58]} cxd4 {[%emt 0:00:04]} 5. Nxd4 {[%emt 0:00:50]} Nf6 {[%emt 0:00:27]} 6. e5 {[%emt 0:12:34]} Qa5+ {[%emt 0:01:10]} 7. Nc3 {[%emt 0:07:37]} Qxe5+ {[%emt 0:00:20]} 8. Be2 {[%emt 0:04:34]} Qc7 {[%emt 0:06:05]} 9. O-O {[%emt 0:02:57]} Nc6 {[%emt 0:01:49]} 10. Nxc6 {[%emt 0:04:38]} bxc6 {[%emt 0:00:26]} 11. Bf3 {[%emt 0:00:44]} Bb7 {[%emt 0:01:09]} 12. Qe2 {[%emt 0:08:22]} Be7 {[%emt 0:03:39]} 13. Be3 {[%emt 0:03:40]} c5 {[%emt 0:01:20]} 14. Rad1 {[%emt 0:05:34]} O-O {[%emt 0:16:55]} 15. Rd2 {[%emt 0:06:31]} Rad8 {[%emt 0:16:54]} 16. Rfd1 {[%emt 0:00:44]} Ne8 {[%emt 0:02:40]} 17. g3 {[%emt 0:08:21]} Bxf3 {[%emt 0:21:07]} 18. Qxf3 {[%emt 0:00:29]} d6 {[%emt 0:01:48]} 19. h3 {[%emt 0:11:58]} f5 {[%emt 0:03:23]} 20. Qe2 {[%emt 0:05:38]} Bf6 {[%emt 0:01:38]} 21. Rc2 {[%emt 0:03:38]} Bxc3 {[%emt 0:00:53]} 22. Rxc3 {[%emt 0:00:07]} h6 {[%emt 0:00:42]} 23. Rcd3 {[%emt 0:02:58]} Nf6 {[%emt 0:06:56]} 24. Kg2 {[%emt 0:00:56]} Ne4 {[%emt 0:03:04]} 25. f3 {[%emt 0:00:27]} Nf6 {[%emt 0:00:35]} 26. b3 {[%emt 0:01:31]} Rfe8 {[%emt 0:00:21]} 27. Bf4 {[%emt 0:03:07]} e5 {[%emt 0:01:29]} 28. Bc1 {[%emt 0:00:26]} Qc6 {[%emt 0:00:50]} 29. Kh2 {[%emt 0:00:53]} Re6 {[%emt 0:03:22]} 30. Bb2 {[%emt 0:01:10]} Rde8 {[%emt 0:00:29]} 31. Re3 {[%emt 0:01:25]} Kf7 {[%emt 0:02:20]} 32. Qf2 {[%emt 0:01:27]} h5 {[%emt 0:02:10]} 33. g4 hxg4 {[%emt 0:00:15]} 34. hxg4 {[%emt 0:00:59]} Rh8+ {[%emt 0:00:04]} 35. Kg1 {[%emt 0:00:16]} Nxg4 {[%emt 0:00:08]} 36. Qe2 {[%emt 0:00:27]} Reh6 {[%emt 0:00:51]} 37. Red3 {[%emt 0:00:55]} Rh1+ {[%emt 0:00:18]} 38. Kg2 {[%emt 0:00:02]} R8h2+ {[%emt 0:00:15]} 39. Kg3 {[%emt 0:00:05]} f4+ {[%emt 0:00:07]} 40. Kxg4 {[%emt 0:00:00]} Qd7+ {[%emt 0:00:00]} 41. Kg5 {[%emt 0:00:45]} Rh5# {[%emt 0:00:07]} 0-1